fUSD/lending_fUSD_20250202
["ID","MTS","AMOUNT","RATE_DAILY","PERIOD"]
[351284973,1738505569275,-1593.35,0.0001315,2]
[351284974,1738505569286,-1637.22,0.0001315,2]
[351284975,1738505569297,-3416.51,0.0001315,2]
[351284976,1738505569308,-882.55,0.0001315,2]
[351284977,1738505569319,-456.49182007,0.0001315,2]
[351284978,1738505569330,-4127.67,0.0001315,2]
[351284979,1738505569340,-9172.95,0.0001315,2]
[351284980,1738505569351,-716.69,0.0001315,2]
[351284981,1738505569362,-3935.05,0.0001315,2]
[351284982,1738505569372,-994.51,0.0001315,2]
[351284983,1738505569383,-500.0,0.0001315,2]
[351284984,1738505569394,-2231.33,0.0001315,2]
[351284985,1738505569404,-646.36,0.0001315,2]
[351284986,1738505569415,-7703.46,0.0001315,2]
[351284987,1738505569426,-612.75,0.0001315,2]
[351284988,1738505569436,-6130.86,0.0001315,2]
[351284989,1738505569447,-1008.29,0.0001315,2]
[351284990,1738505569458,-4888.75,0.0001315,2]
[351284991,1738505569469,-4468.98,0.0001315,2]
[351284992,1738505569480,-874.52,0.0001315,2]
[351284993,1738505569491,-7017.85,0.0001315,2]
[351284994,1738505569503,-7067.83,0.0001315,2]
[351284995,1738505569519,-504.51,0.0001315,2]
[351284996,1738505569529,-1694.57,0.0001315,2]
[351284997,1738505569540,-809.09,0.0001315,2]
[351284998,1738505569554,-1463.68,0.0001315,2]
[351284999,1738505569568,-500.0,0.0001315,2]
[351285000,1738505569580,-957.1,0.0001315,2]
[351285001,1738505569591,-5901.35,0.0001315,2]
[351285002,1738505569603,-25450.62,0.0001315,2]
[351285003,1738505569614,-3194.77,0.0001315,2]
[351285004,1738505569625,-972.11,0.0001315,2]
[351285005,1738505569636,-500.0,0.0001315,2]
[351285006,1738505569646,-978.28,0.0001315,2]
[351285007,1738505569657,-1927.34,0.0001315,2]
[351285008,1738505569668,-1313.38,0.0001315,2]
[351285009,1738505569678,-1822.98,0.0001315,2]
[351285010,1738505569688,-2811.74,0.0001315,2]
[351285011,1738505569698,-2290.65,0.0001315,2]
[351285012,1738505569708,-4241.49,0.0001315,2]
[351285013,1738505569718,-2753.15,0.0001315,2]
[351285014,1738505569729,-778.33,0.0001315,2]
[351285015,1738505569739,-11875.49,0.0001315,2]
[351285016,1738505569749,-3179.79,0.0001315,2]
[351285017,1738505569761,-590.79,0.0001315,2]
[351285018,1738505569771,-2422.99,0.0001315,2]
[351285019,1738505569782,-1805.01,0.0001315,2]
[351285020,1738505569791,-8941.69,0.0001315,2]
[351285021,1738505569801,-1720.61,0.0001315,2]
[351285022,1738505569811,-890.83,0.0001315,2]
[351285023,1738505569822,-500.0,0.0001315,2]
[351285024,1738505569831,-924.98,0.0001315,2]
[351285025,1738505569841,-220.0298671,0.0001315,2]
[351285026,1738505569851,-753.96,0.0001315,2]
[351285027,1738505569861,-2796.09,0.0001315,2]
[351285028,1738505569871,-1515.55,0.0001315,2]
[351285029,1738505569881,-500.0,0.0001315,2]
[351285030,1738505569891,-8022.15,0.0001315,2]
[351285031,1738505569902,-1171.94,0.0001315,2]
[351285032,1738505569912,-500.0,0.0001315,2]
[351285033,1738505569922,-741.26,0.0001315,2]
[351285034,1738505569932,-1314.16,0.0001315,2]
[351285035,1738505569943,-2827.17,0.0001315,2]
[351285036,1738505569952,-596.08,0.0001315,2]
[351285037,1738505569963,-2587.99,0.0001315,2]
[351285038,1738505569973,-500.0,0.0001315,2]
[351285039,1738505569984,-770.44,0.0001315,2]
[351285040,1738505569995,-651.22,0.0001315,2]
[351285041,1738505570007,-290.21936481,0.0001315,2]
[351285042,1738505570019,-500.0,0.00013222,2]
[351285043,1738505570030,-1500.0,0.00013222,2]
[351285044,1738505570040,-823.0,0.00013253,2]
[351285045,1738505570051,-30000.0,0.0001327,2]
[351285046,1738505570061,-559.46,0.00013287,2]
[351285047,1738505570072,-803.7,0.00013287,2]
[351285048,1738505570083,-500.0,0.00013287,2]
[351285049,1738505570092,-500.0,0.00013287,2]
[351285050,1738505570103,-801.06,0.00013287,2]
[351285051,1738505570112,-500.0,0.00013287,2]
[351285052,1738505570122,-773.23,0.00013287,2]
[351285053,1738505570132,-295.32418714,0.00013287,2]
[351285054,1738505570142,-759.9,0.00013287,2]
[351285055,1738505570152,-1260.15,0.00013287,2]
[351285056,1738505570162,-589.03,0.00013287,2]
[351285057,1738505570172,-500.0,0.00013287,2]
[351285058,1738505570182,-177.61422033,0.00013287,2]
[351285059,1738505570193,-1063.41,0.00013287,2]
[351285060,1738505570203,-673.02,0.00013287,2]
[351285061,1738505570212,-821.68,0.00013287,2]
[351285062,1738505570221,-549.88,0.00013287,2]
[351285063,1738505570231,-500.0,0.00013287,2]
[351285064,1738505570241,-703.15,0.00013287,2]
[351285065,1738505570250,-500.0,0.00013287,2]
[351285066,1738505570261,-828.9,0.00013287,2]
[351285067,1738505570271,-627.47,0.00013287,2]
[351285068,1738505570282,-731.11,0.00013287,2]
[351285069,1738505570292,-500.0,0.00013287,2]
[351285070,1738505570302,-592.69,0.00013287,2]
[351285071,1738505570313,-625.97,0.00013287,2]
[351285072,1738505570323,-500.0,0.00013287,2]
[351285073,1738505570333,-661.86,0.00013287,2]
[351285074,1738505570343,-552.57,0.00013287,2]
[351285075,1738505570353,-3015.63,0.00013287,2]
[351285076,1738505570363,-635.12,0.00013287,2]
[351285077,1738505570373,-1112.86,0.00013287,2]
[351285078,1738505570383,-511.08,0.00013287,2]
[351285079,1738505570393,-910.85,0.00013287,2]
[351285080,1738505570403,-738.14,0.00013287,2]
[351285081,1738505570413,-1482.76,0.00013287,2]
[351285082,1738505570422,-500.0,0.00013287,2]
[351285083,1738505570432,-500.0,0.00013287,2]
[351285084,1738505570441,-545.77,0.00013287,2]
[351285085,1738505570451,-193.39200335,0.00013287,2]
[351285086,1738505570461,-735.2,0.00013287,2]
[351285087,1738505570471,-717.38,0.00013287,2]
[351285088,1738505570480,-498.26117939,0.00013287,2]
[351285089,1738505570490,-2333.39,0.00013287,2]
[351285090,1738505570501,-618.28,0.00013287,2]
[351285091,1738505570514,-2305.89,0.00013287,2]
[351285092,1738505570523,-703.3,0.00013287,2]
[351285093,1738505570533,-2217.46,0.00013287,2]
[351285094,1738505570542,-500.0,0.00013287,2]
[351285095,1738505570553,-573.42,0.00013287,2]
[351285096,1738505570564,-2053.36,0.00013287,2]
[351285097,1738505570574,-1106.04,0.00013287,2]
[351285098,1738505570584,-2139.13,0.00013287,2]
[351285099,1738505570595,-1316.15,0.00013287,2]
[351285100,1738505570604,-500.0,0.00013287,2]
[351285101,1738505570614,-390.19612394,0.00013287,2]
[351285102,1738505570624,-548.83,0.00013287,2]
[351285103,1738505570634,-553.21,0.00013287,2]
[351285104,1738505570644,-525.3,0.00013287,2]
[351285105,1738505570654,-576.18721687,0.00013287,2]
[351285106,1738505570664,-2325.54,0.00013287,2]
[351285107,1738505570673,-1109.74,0.00013287,2]
[351285108,1738505570683,-500.44,0.00013287,2]
[351285109,1738505570693,-681.73,0.00013287,2]
[351285110,1738505570702,-677.93,0.00013287,2]
[351285111,1738505570712,-513.34,0.00013287,2]
[351285112,1738505570721,-1154.2,0.00013287,2]
[351285113,1738505570732,-2022.69,0.00013287,2]
[351285114,1738505570742,-685.35,0.00013287,2]
[351285115,1738505570751,-500.0,0.00013287,2]
[351285116,1738505570762,-500.0,0.00013287,2]
[351285117,1738505570771,-500.0,0.00013287,2]
[351285118,1738505570781,-550.64,0.00013287,2]
[351285119,1738505570791,-1342.11,0.00013287,2]
[351285120,1738505570801,-500.0,0.00013287,2]
[351285121,1738505570810,-2093.39,0.00013287,2]
[351285122,1738505570820,-880.18,0.00013287,2]
[351285123,1738505570829,-1643.92,0.00013287,2]
[351285124,1738505570839,-500.0,0.00013287,2]
[351285125,1738505570849,-793.33,0.00013287,2]
[351285126,1738505570859,-500.0,0.00013287,2]
[351285127,1738505570868,-1232.16,0.00013287,2]
[351285128,1738505570878,-588.54,0.00013287,2]
[351285129,1738505570887,-534.34,0.00013287,2]
[351285130,1738505570896,-538.87,0.00013287,2]
[351285131,1738505570905,-793.28,0.00013287,2]
[351285132,1738505570915,-500.0,0.00013287,2]
[351285133,1738505570925,-1592.88,0.00013287,2]
[351285134,1738505570935,-616.53,0.00013287,2]
[351285135,1738505570945,-500.0,0.00013287,2]
[351285136,1738505570956,-1854.87,0.00013287,2]
[351285137,1738505570966,-1690.33,0.00013287,2]
[351285138,1738505570976,-500.0,0.00013287,2]
[351285139,1738505570985,-500.0,0.00013287,2]
[351285140,1738505570995,-534.43,0.00013287,2]
[351285141,1738505571008,-500.0,0.00013287,2]
[351285142,1738505571018,-508.93,0.00013287,2]
[351285143,1738505571029,-637.72,0.00013287,2]
[351285144,1738505571039,-1150.84,0.00013287,2]
[351285145,1738505571050,-508.66,0.00013287,2]
[351285146,1738505571060,-500.0,0.00013287,2]
[351285147,1738505571070,-800.25,0.00013287,2]
[351285148,1738505571080,-586.07,0.00013287,2]
[351285149,1738505571091,-731.54,0.00013287,2]
[351285150,1738505571100,-1305.07,0.00013287,2]
[351285151,1738505571110,-1841.9,0.00013287,2]
[351285152,1738505571121,-734.22,0.00013287,2]
[351285153,1738505571131,-500.0,0.00013287,2]
[351285154,1738505571141,-1731.58,0.00013287,2]
[351285155,1738505571151,-573.1,0.00013287,2]
[351285156,1738505571161,-500.0,0.00013287,2]
[351285157,1738505571171,-500.0,0.00013287,2]
[351285158,1738505571182,-1366.78,0.00013287,2]
[351285159,1738505571192,-500.0,0.00013287,2]
[351285160,1738505571202,-1447.06,0.00013287,2]
[351285161,1738505571212,-955.56,0.00013287,2]
[351285162,1738505571222,-521.42,0.00013287,2]
[351285163,1738505571232,-854.39,0.00013287,2]
[351285164,1738505571243,-904.27,0.00013287,2]
[351285165,1738505571252,-2762.56,0.00013287,2]
[351285166,1738505571371,-500.0,0.00013287,2]
[351285167,1738505571382,-666.98,0.00013287,2]
[351285168,1738505571392,-783.0,0.00013287,2]
[351285169,1738505571402,-500.0,0.00013287,2]
[351285170,1738505571412,-2104.01,0.00013287,2]
[351285171,1738505571421,-2287.85,0.00013287,2]
[351285172,1738505571432,-944.74,0.00013287,2]
[351285173,1738505571442,-738.27,0.00013287,2]
[351285174,1738505571452,-505.82,0.00013287,2]
[351285175,1738505571461,-1297.85,0.00013287,2]
[351285176,1738505571471,-1519.92,0.00013287,2]
[351285177,1738505571481,-500.0,0.00013287,2]
[351285178,1738505571490,-500.0,0.00013287,2]
[351285179,1738505571500,-522.19900892,0.00013287,2]
[351285180,1738505571511,-500.0,0.00013287,2]
[351285181,1738505571522,-643.77,0.00013287,2]
[351285182,1738505571533,-784.02,0.00013287,2]
[351285183,1738505571544,-529.45,0.00013287,2]
[351285184,1738505571557,-500.0,0.00013287,2]
[351285185,1738505571567,-1418.55,0.00013287,2]
[351285186,1738505571576,-517.07,0.00013287,2]
[351285187,1738505571587,-2783.69,0.00013287,2]
[351285188,1738505571597,-1420.23,0.00013287,2]
[351285189,1738505571607,-2181.51,0.00013287,2]
[351285190,1738505571617,-1225.35,0.00013287,2]
[351285191,1738505571627,-500.0,0.00013287,2]
[351285192,1738505571637,-500.0,0.00013287,2]
[351285193,1738505571646,-500.0,0.00013287,2]
[351285194,1738505571655,-942.19,0.00013287,2]
[351285195,1738505571665,-507.86,0.00013287,2]
[351285196,1738505571674,-844.52,0.00013287,2]
[351285197,1738505571683,-1267.86,0.00013287,2]
[351285198,1738505571693,-1642.95,0.00013287,2]
[351285199,1738505571703,-632.5,0.00013287,2]
[351285200,1738505571713,-500.0,0.00013287,2]
[351285201,1738505571723,-717.96,0.00013287,2]
[351285202,1738505571732,-862.89,0.00013287,2]
[351285203,1738505571742,-978.15,0.00013287,2]
[351285204,1738505571751,-1851.1,0.00013287,2]
[351285205,1738505571761,-591.76,0.00013287,2]
[351285206,1738505571771,-722.67,0.00013287,2]
[351285207,1738505571780,-500.0,0.00013287,2]
[351285208,1738505571790,-500.0,0.00013287,2]
[351285209,1738505571799,-520.38,0.00013287,2]
[351285210,1738505571809,-500.0,0.00013287,2]
[351285211,1738505571818,-500.0,0.00013287,2]
[351285212,1738505571827,-1708.12,0.00013287,2]
[351285213,1738505571837,-523.57,0.00013287,2]
[351285214,1738505571847,-760.88,0.00013287,2]
[351285215,1738505571867,-500.0,0.00013287,2]
[351285216,1738505571877,-811.43,0.00013287,2]
[351285217,1738505571885,-1373.61,0.00013287,2]
[351285218,1738505571895,-1105.09,0.00013287,2]
[351285219,1738505571904,-747.24,0.00013287,2]
[351285220,1738505571914,-1175.0,0.00013287,2]
[351285221,1738505571924,-1419.66,0.00013287,2]
[351285222,1738505571933,-899.67,0.00013287,2]
[351285223,1738505571942,-500.0,0.00013287,2]
[351285224,1738505571951,-814.85,0.00013287,2]
[351285225,1738505571960,-967.34,0.00013287,2]
[351285226,1738505571970,-984.06,0.00013287,2]
[351285227,1738505571980,-709.72,0.00013287,2]
[351285228,1738505571989,-500.0,0.00013287,2]
[351285229,1738505571999,-509.47,0.00013287,2]
[351285230,1738505572010,-1529.4,0.00013287,2]
[351285231,1738505572020,-1025.92,0.00013287,2]
[351285232,1738505572030,-580.72,0.00013287,2]
[351285233,1738505572039,-500.0,0.00013287,2]
[351285234,1738505572049,-736.8,0.00013287,2]
[351285235,1738505572058,-500.0,0.00013287,2]
[351285236,1738505572067,-500.0,0.00013287,2]
[351285237,1738505572077,-500.0,0.00013287,2]
[351285238,1738505572086,-794.58,0.00013287,2]
[351285239,1738505572095,-515.19,0.00013287,2]
[351285240,1738505572105,-500.0,0.00013287,2]
[351285241,1738505572114,-551.09,0.00013287,2]
[351285242,1738505572123,-1457.11,0.00013287,2]
[351285243,1738505572132,-848.94,0.00013287,2]
[351285244,1738505572141,-512.04,0.00013287,2]
[351285245,1738505572151,-1457.16,0.00013287,2]
[351285246,1738505572160,-562.76,0.00013287,2]
[351285247,1738505572170,-1032.24,0.00013287,2]
[351285248,1738505572179,-1061.96,0.00013287,2]
[351285249,1738505572189,-1015.65,0.00013287,2]
[351285250,1738505572198,-679.22,0.00013287,2]
[351285251,1738505572208,-1177.9,0.00013287,2]
[351285252,1738505572218,-510.71,0.00013287,2]
[351285253,1738505572227,-584.42,0.00013287,2]
[351285254,1738505572236,-1657.79,0.00013287,2]
[351285255,1738505572245,-1057.32,0.00013287,2]
[351285256,1738505572255,-500.0,0.00013287,2]
[351285257,1738505572265,-737.32,0.00013287,2]
[351285258,1738505572274,-865.79,0.00013287,2]
[351285259,1738505572284,-1316.4,0.00013287,2]
[351285260,1738505572294,-671.26,0.00013287,2]
[351285261,1738505572303,-751.62,0.00013287,2]
[351285262,1738505572313,-750.62,0.00013287,2]
[351285263,1738505572323,-1011.53,0.00013287,2]
[351285264,1738505572332,-562.22088237,0.00013287,2]
[351285265,1738505572342,-1248.28,0.00013287,2]
[351285266,1738505572352,-519.27,0.00013287,2]
[351285267,1738505572361,-293.20332642,0.00013287,2]
[351285268,1738505572371,-775.41,0.00013287,2]
[351285269,1738505572380,-650.78,0.00013287,2]
[351285270,1738505572390,-496.82311456,0.00013287,2]
[351285271,1738505572400,-787.2,0.00013287,2]
[351285272,1738505572410,-500.0,0.00013287,2]
[351285273,1738505572420,-1398.59,0.00013287,2]
[351285274,1738505572430,-2098.34,0.00013287,2]
[351285275,1738505572442,-1717.3,0.00013287,2]
[351285276,1738505572452,-535.92,0.00013287,2]
[351285277,1738505572462,-520.83,0.00013287,2]
[351285278,1738505572479,-1388.03,0.00013287,2]
[351285279,1738505572488,-696.21,0.00013287,2]
[351285280,1738505572498,-638.42,0.00013287,2]
[351285281,1738505572509,-1523.64,0.00013287,2]
[351285282,1738505572519,-1438.93,0.00013287,2]
[351285283,1738505572528,-500.0,0.00013287,2]
[351285284,1738505572538,-1164.79,0.00013287,2]
[351285285,1738505572547,-500.0,0.00013287,2]
[351285286,1738505572559,-2008.34,0.00013287,2]
[351285287,1738505572568,-867.5,0.00013287,2]
[351285288,1738505572577,-500.0,0.00013287,2]
[351285289,1738505572587,-930.83,0.00013287,2]
[351285290,1738505572596,-1142.86,0.00013287,2]
[351285291,1738505572606,-1063.97,0.00013287,2]
[351285292,1738505572615,-5963.38,0.00013287,2]
[351285293,1738505572625,-528.98,0.00013287,2]
[351285294,1738505572635,-632.65,0.00013287,2]
[351285295,1738505572645,-939.46,0.00013287,2]
[351285296,1738505572654,-2575.73,0.00013287,2]
[351285297,1738505572663,-1411.82,0.00013287,2]
[351285298,1738505572672,-4332.07,0.00013287,2]
[351285299,1738505572682,-500.0,0.00013287,2]
[351285300,1738505572691,-623.14,0.00013287,2]
[351285301,1738505572700,-808.47,0.00013287,2]
[351285302,1738505572710,-1167.23,0.00013287,2]
[351285303,1738505572719,-1073.14,0.00013287,2]
[351285304,1738505572729,-1266.06,0.00013287,2]
[351285305,1738505572739,-1643.83,0.00013287,2]
[351285306,1738505572748,-2134.84,0.00013287,2]
[351285307,1738505572758,-1098.43,0.00013287,2]
[351285308,1738505572768,-7531.63,0.00013287,2]
[351285309,1738505572778,-636.47,0.00013287,2]
[351285310,1738505572787,-2806.74,0.00013287,2]
[351285311,1738505572797,-500.0,0.00013287,2]
[351285312,1738505572807,-4457.82,0.00013287,2]
[351285313,1738505572816,-500.0,0.00013287,2]
[351285314,1738505572826,-1431.15,0.00013287,2]
[351285315,1738505572836,-1068.36,0.00013287,2]
[351285316,1738505572846,-3317.75,0.00013287,2]
[351285317,1738505572856,-3236.23,0.00013287,2]
[351285318,1738505572865,-998.58,0.00013287,2]
[351285319,1738505572875,-500.0,0.00013287,2]
[351285320,1738505572884,-649.19,0.00013287,2]
[351285321,1738505572894,-3603.07,0.00013287,2]
[351285322,1738505572903,-647.76,0.00013287,2]
[351285323,1738505572913,-518.71,0.00013287,2]
[351285324,1738505572922,-2773.67,0.00013287,2]
[351285325,1738505572932,-3478.77,0.00013287,2]
[351285326,1738505572941,-1377.07,0.00013287,2]
[351285327,1738505572950,-500.0,0.00013287,2]
[351285328,1738505572960,-1559.79,0.00013287,2]
[351285329,1738505572970,-993.51,0.00013287,2]
[351285330,1738505572979,-1353.14,0.00013287,2]
[351285331,1738505572990,-1889.01,0.00013287,2]
[351285332,1738505572999,-532.1,0.00013287,2]
[351285333,1738505573010,-5584.57,0.00013287,2]
[351285334,1738505573019,-628.58,0.00013287,2]
[351285335,1738505573028,-500.0,0.00013287,2]
[351285336,1738505573037,-1416.56,0.00013287,2]
[351285337,1738505573047,-966.92,0.00013287,2]
[351285338,1738505573055,-1706.09,0.00013287,2]
[351285339,1738505573065,-820.07,0.00013287,2]
[351285340,1738505573075,-865.01,0.00013287,2]
[351285341,1738505573084,-555.56,0.00013287,2]
[351285342,1738505573093,-500.0,0.00013287,2]
[351285343,1738505573102,-6599.2,0.00013287,2]
[351285344,1738505573111,-4362.97,0.00013287,2]
[351285345,1738505573120,-3023.49,0.00013287,2]
[351285346,1738505573130,-1475.65,0.00013287,2]
[351285347,1738505573139,-786.41,0.00013287,2]
[351285348,1738505573149,-1337.09,0.00013287,2]
[351285349,1738505573158,-1205.96,0.00013287,2]
[351285350,1738505573167,-1903.11,0.00013287,2]
[351285351,1738505573177,-2817.82,0.00013287,2]
[351285352,1738505573187,-2360.45,0.00013287,2]
[351285353,1738505573196,-583.26,0.00013287,2]
[351285354,1738505573206,-934.52,0.00013287,2]
[351285355,1738505573215,-1388.22,0.00013287,2]
[351285356,1738505573225,-2432.51,0.00013287,2]
[351285357,1738505573235,-2243.95,0.00013287,2]
[351285358,1738505573244,-609.67,0.00013287,2]
[351285359,1738505573254,-1262.46,0.00013287,2]
[351285360,1738505573265,-2572.68,0.00013287,2]
[351285361,1738505573274,-1950.74,0.00013287,2]
[351285362,1738505573283,-1181.19,0.00013287,2]
[351285363,1738505573293,-871.86,0.00013287,2]
[351285364,1738505573302,-1126.88,0.00013287,2]
[351285365,1738505573312,-541.6,0.00013287,2]
[351285366,1738505573321,-2805.0,0.00013287,2]
[351285367,1738505573330,-3490.69,0.00013287,2]
[351285368,1738505573339,-2478.61,0.00013287,2]
[351285369,1738505573350,-1886.99,0.00013287,2]
[351285370,1738505573359,-693.62,0.00013287,2]
[351285371,1738505573369,-1166.42,0.00013287,2]
[351285372,1738505573378,-4718.72,0.00013287,2]
[351285373,1738505573387,-646.83,0.00013287,2]
[351285374,1738505573395,-1219.56,0.00013287,2]
[351285375,1738505573405,-1713.43,0.00013287,2]
[351285376,1738505573415,-500.0,0.00013287,2]
[351285377,1738505573424,-764.96,0.00013287,2]
[351285378,1738505573434,-742.31,0.00013287,2]
[351285379,1738505573444,-585.08,0.00013287,2]
[351285380,1738505573453,-5247.94,0.00013287,2]
[351285381,1738505573463,-1545.21,0.00013287,2]
[351285382,1738505573472,-5157.65,0.00013287,2]
[351285383,1738505573481,-2240.61,0.00013287,2]
[351285384,1738505573490,-1481.58,0.00013287,2]
[351285385,1738505573499,-535.67,0.00013287,2]
[351285386,1738505573511,-1485.26,0.00013287,2]
[351285387,1738505573520,-1399.19,0.00013287,2]
[351285388,1738505573530,-3226.98,0.00013287,2]
[351285389,1738505573539,-1311.36,0.00013287,2]
[351285390,1738505573549,-500.0,0.00013287,2]
[351285391,1738505573561,-5680.36,0.00013287,2]
[351285392,1738505573570,-348.15311318,0.00013287,2]
[351285393,1738505573579,-2300.21,0.00013287,2]
[351285394,1738505573590,-2521.42,0.00013287,2]
[351285395,1738505573600,-2782.57,0.00013287,2]
[351285396,1738505573609,-1766.1,0.00013287,2]
[351285397,1738505573619,-1697.0,0.00013287,2]
[351285398,1738505573628,-1939.71,0.00013287,2]
[351285399,1738505573639,-787.48,0.00013287,2]
[351285400,1738505573650,-1300.79,0.00013287,2]
[351285401,1738505573659,-3484.78,0.00013287,2]
[351285402,1738505573670,-512.49,0.00013287,2]
[351285403,1738505573679,-500.0,0.00013287,2]
[351285404,1738505573688,-1213.23,0.00013287,2]
[351285405,1738505573698,-5629.82,0.00013287,2]
[351285406,1738505573707,-2449.26,0.00013287,2]
[351285407,1738505573717,-758.01,0.00013287,2]
[351285408,1738505573727,-848.99,0.00013287,2]
[351285409,1738505573736,-888.7,0.00013287,2]
[351285410,1738505573746,-4605.95,0.00013287,2]
[351285411,1738505573757,-2359.63,0.00013287,2]
[351285412,1738505573767,-892.49,0.00013287,2]
[351285413,1738505573777,-871.23,0.00013287,2]
[351285414,1738505573787,-1094.04,0.00013287,2]
[351285415,1738505573797,-6442.67,0.00013287,2]
[351285416,1738505573807,-2052.81,0.00013287,2]
[351285417,1738505573816,-1297.27,0.00013287,2]
[351285418,1738505573826,-2655.71,0.00013287,2]
[351285419,1738505573835,-1885.94,0.00013287,2]
[351285420,1738505573845,-1553.08,0.00013287,2]
[351285421,1738505573854,-10441.41,0.00013287,2]
[351285422,1738505573864,-1012.3,0.00013287,2]
[351285423,1738505573873,-500.0,0.00013287,2]
[351285424,1738505573883,-4514.04,0.00013287,2]
[351285425,1738505573892,-3003.61,0.00013287,2]
[351285426,1738505573902,-2902.94,0.00013287,2]
[351285427,1738505573911,-4716.6,0.00013287,2]
[351285428,1738505573921,-1964.45,0.00013287,2]
[351285429,1738505573930,-1593.35,0.00013287,2]
[351285430,1738505573940,-1637.22,0.00013287,2]
[351285431,1738505573949,-3416.51,0.00013287,2]
[351285432,1738505573960,-882.55,0.00013287,2]
[351285433,1738505573970,-4127.67,0.00013287,2]
[351285434,1738505573979,-9172.95,0.00013287,2]
[351285435,1738505573989,-716.69,0.00013287,2]
[351285436,1738505573999,-3935.05,0.00013287,2]
[351285437,1738505574011,-994.51,0.00013287,2]
[351285438,1738505574021,-500.0,0.00013287,2]
[351285439,1738505574030,-2231.33,0.00013287,2]
[351285440,1738505574039,-646.36,0.00013287,2]
[351285441,1738505574049,-7703.46,0.00013287,2]
[351285442,1738505574059,-612.75,0.00013287,2]
[351285443,1738505574069,-6130.86,0.00013287,2]
[351285444,1738505574079,-1008.29,0.00013287,2]
[351285445,1738505574088,-4888.75,0.00013287,2]
[351285446,1738505574097,-4468.98,0.00013287,2]
[351285447,1738505574106,-874.52,0.00013287,2]
[351285448,1738505574114,-7017.85,0.00013287,2]
[351285449,1738505574123,-7067.83,0.00013287,2]
[351285450,1738505574133,-504.51,0.00013287,2]
[351285451,1738505574143,-1694.57,0.00013287,2]
[351285452,1738505574152,-809.09,0.00013287,2]
[351285453,1738505574161,-1463.68,0.00013287,2]
[351285454,1738505574171,-500.0,0.00013287,2]
[351285455,1738505574181,-957.1,0.00013287,2]
[351285456,1738505574191,-5901.35,0.00013287,2]
[351285457,1738505574201,-25450.62,0.00013287,2]
[351285458,1738505574211,-3194.77,0.00013287,2]
[351285459,1738505574221,-972.11,0.00013287,2]
[351285460,1738505574230,-500.0,0.00013287,2]
[351285461,1738505574240,-978.28,0.00013287,2]
[351285462,1738505574249,-1927.34,0.00013287,2]
[351285463,1738505574259,-1313.38,0.00013287,2]
[351285464,1738505574268,-1822.98,0.00013287,2]
[351285465,1738505574278,-2811.74,0.00013287,2]
[351285466,1738505574287,-2290.65,0.00013287,2]
[351285467,1738505574296,-4241.49,0.00013287,2]
[351285468,1738505574306,-2753.15,0.00013287,2]
[351285469,1738505574316,-778.33,0.00013287,2]
[351285470,1738505574325,-11875.49,0.00013287,2]
[351285471,1738505574335,-3179.79,0.00013287,2]
[351285472,1738505574345,-590.79,0.00013287,2]